Cogmind - Beta 15 @@@ ROGUE MODE // 2025.06.08 @ 15:47:27 // Winter2019/RPGLIKE Player: Jack Result: Destroyed by G-47 Trooper with Particle Gun Performance ------------- Evolutions (3) 1500 Regions Visited (4) 800 Robots Destroyed (39) 195 Value Destroyed (1160) 1160 Prototype IDs (0) 0 Alien Tech Used (0) 0 Bonus (0) 0 TOTAL SCORE: 3655 Bonus ------- None Cogmind --------- Core Integrity 0/800 Matter 290/300 Energy 91/100 System Corruption 13% Temperature Hot (222) Movement Hovering (56) Location -7/Factory Parts ------- > --- POWER (1) -------- (None) > --- PROPULSION (2) --- Airjet Airjet > --- UTILITY (1) ------ Microactuators > --- WEAPON (4) ------- Katana > --- INVENTORY (0) ---- (None) Peak State ------------ > --- POWER ------------ Improved Deuterium Engine > --- PROPULSION ------- Airjet Airjet > --- UTILITY ---------- Microactuators > --- WEAPON ----------- Katana > --- INVENTORY -------- (None) [Rating: 17] Favorites ----------- Power Light Ion Engine Engine Light Ion Engine Power Core Light Nuclear Core Propulsion Flight Unit Hover Unit Airjet Flight Unit Flight Unit Utility Light Armor Plating Device Microactuators Protection Light Armor Plating Weapon Katana Energy Gun Small Laser Ballistic Gun Light Assault Rifle Slashing Weapon Katana Build | -11 -10 -9 -8 -7 ------- Run | Yrd Mat Mat Mat Fac Slots Evolved 4 | 4 . . . . Power . | . . . . . Propulsion 1 | 1 . . . . Utility . | . . . . . Weapon 3 | 3 . . . . Parts Attached 18 | 3 5 4 1 5 Power 3 | . 1 . . 2 Engine 2 | . 1 . . 1 Core 1 | . . . . 1 Reactor . | . . . . . Propulsion 4 | . 2 . . 2 Treads . | . . . . . Leg . | . . . . . Wheel . | . . . . . Hover 2 | . . . . 2 Flight 2 | . 2 . . . Utility 3 | . . 2 . 1 Device 1 | . . . . 1 Storage . | . . . . . Processor . | . . . . . Hackware . | . . . . . Protection 2 | . . 2 . . Artifact . | . . . . . Weapon 8 | 3 2 2 1 . Energy Gun 3 | 2 1 . . . Energy Cannon . | . . . . . Ballistic Gun 4 | 1 1 2 . . Ballistic Cannon . | . . . . . Launcher . | . . . . . Special Weapon . | . . . . . Impact Weapon . | . . . . . Slashing Weapon 1 | . . . 1 . Piercing Weapon . | . . . . . Special Melee Weapon . | . . . . . Unidentified Prototypes . | . . . . . Corrupted Parts 1 | . . . . 1 System Corruption 10 | . . . . 10 Parts Lost 4 | . . . . 4 Power 2 | . . . . 2 Propulsion 1 | . . . . 1 Utility 1 | . . . . 1 Weapon . | . . . . . Highest Loss Streak 2 | . . . . 2 To Critical Strikes . | . . . . . Average Backups . | . . . . . Power . | . . . . . Propulsion . | . . . . . Utility . | . . . . . Weapon . | . . . . . Tool/Special . | . . . . . Unused Backups . | . . . . . Power . | . . . . . Propulsion . | . . . . . Utility . | . . . . . Weapon . | . . . . . Tool/Special . | . . . . . Average Slot Usage (%) 59 | . 40 87 90 51 Engine 10 | . 3 12 12 11 Hover 2 | . . . . 5 Flight 13 | . 5 25 25 10 Device 1 | . . . . 3 Protection 4 | . . 2 12 5 Energy Gun 5 | . 18 9 . . Ballistic Gun 13 | . 13 38 37 . Slashing Weapon 6 | . . . 3 12 Peak Build Rating 17 | 3 6 9 9 17 Average Rating 7 | 2 3 7 8 8 On Entrance 5 | . 3 6 9 7 Naked Turns . | . . . . . Heaviest Build 14 | 6 7 13 13 14 Greatest Support 21 | 8 13 13 13 21 Greatest Overweight (x) . | . . . . . Average Overweight (x) . | . . . . . Largest Inventory Capacity . | . . . . . Average Capacity . | . . . . . Most Carried . | . . . . . Average Carried . | . . . . . Final Capacity . | . . . . . Final Carried . | . . . . . Class Distribution -------------------- 53% | Hacker-Mutant 25% | Scavenger-Gunner 12% | Mutant 9% | Gunner Dominant Class ---------------- Mutant | -10/Materials Scavenger-Gunner | -9/Materials Scavenger-Gunner | -8/Materials Hacker-Mutant | -7/Factory Resources | -11 -10 -9 -8 -7 ----------- Run | Yrd Mat Mat Mat Fac Matter Collected 589 | 156 173 96 114 50 Remotely . | . . . . . Salvage Created 1446 | . 176 130 259 881 Parts 80 | . 15 14 14 37 Haulers Intercepted . | . . . . . Recyclers Shooed . | . . . . . Parts Field Recycled . | . . . . . Retrieved Matter . | . . . . . Parts Self-Destructed . | . . . . . Prevented . | . . . . . Kills | -11 -10 -9 -8 -7 ------- Run | Yrd Mat Mat Mat Fac Combat Hostiles Destroyed 32 | . 9 6 5 12 Melee 12 | . . . 1 11 Guns 19 | . 9 6 4 . AOE 1 | . . . . 1 Classes Destroyed 10 | . 2 1 3 4 Worker 2 | . . . . 2 Builder 1 | . . . . 1 Recycler 4 | . . . 1 3 Swarmer 10 | . 6 4 . . Grunt 13 | . 3 . 2 8 Brawler 1 | . . . . 1 Duelist 1 | . . . 1 . Sentry 4 | . . 2 1 1 Hunter 2 | . . . 1 1 Programmer 1 | . . . . 1 Best Kill Streak 7 | . 4 7 5 6 Combat Bots Only 7 | . 4 7 4 3 Max Kills in Single Turn 1 | . 1 1 1 1 Gunslinging . | . . . . . Exploded 1 | . . . . 1 Melee 1 | . . . 1 1 Uniques/NPCs Destroyed . | . . . . . Combat | -11 -10 -9 -8 -7 -------- Run | Yrd Mat Mat Mat Fac Hostile Shots Fired 185 | . 53 20 20 92 Missed 63 | . 22 7 7 27 Hits 122 | . 31 13 13 65 Melee 8 | . . . 1 7 Projectile 114 | . 31 13 12 58 Critical Strikes 2 | . . . . 2 Damage Taken 1767 | . 269 137 221 1140 Core 1385 | . 224 107 147 907 Absorbed by Shields . | . . . . . Redirected to Core 940 | . 137 97 147 559 Regen/Repaired (Parts) 25 | . . . . 25 Core Remaining (%) 94 | 100 88 94 97 . Volleys Fired 38 | . 16 9 13 . Largest 4 | . 3 4 4 . Hottest 110 | . 110 100 83 . Shots Fired 119 | . 36 31 52 . Gun 119 | . 36 31 52 . Cannon . | . . . . . Launcher . | . . . . . Special . | . . . . . Kinetic 93 | . 17 24 52 . Thermal 23 | . 16 7 . . Explosive . | . . . . . Electromagnetic 3 | . 3 . . . Robot Hit Streak 12 | . 5 11 12 . Robot Miss Streak 3 | . 3 3 2 . Penetration Max . | . . . . . Secondary Targets 3 | . 2 . 1 . Max Gunslinging Chain 1 | . 1 . 1 . Shots Hit Robots 116 | . 20 17 39 40 Core Hits 58 | . 10 9 18 21 Critical Kills . | . . . . . Critical Parts Destroyed . | . . . . . Critical Strikes 9 | . . . 1 8 Sever 9 | . . . 1 8 Melee Attacks 54 | . . . 2 52 Impact . | . . . . . Slashing 54 | . . . 2 52 Piercing . | . . . . . Sneak Attacks 6 | . . . . 6 Combat Hostiles . | . . . . . Follow-up Attacks . | . . . . . Damage Inflicted 2293 | . 243 172 423 1455 Guns 763 | . 243 172 348 . Cannons . | . . . . . Explosions . | . . . . . Melee 1530 | . . . 75 1455 Ramming . | . . . . . Kinetic 613 | . 114 151 348 . Thermal 120 | . 99 21 . . Explosive . | . . . . . Electromagnetic 30 | . 30 . . . Impact . | . . . . . Slashing 1530 | . . . 75 1455 Piercing . | . . . . . Highest Corruption 13 | . . . . 13 Average Corruption 2 | . . . . 2 Corruption Purged . | . . . . . Corruption Blocked . | . . . . . Effects 5 | . . . . 5 Message Errors 1 | . . . . 1 Heat Flow Errors 2 | . . . . 2 Energy Discharges 2 | . . . . 2 Overload Shots . | . . . . . Overflow Damage 63 | . . . . 63 Projectiles . | . . . . . Explosions . | . . . . . Melee 63 | . . . . 63 Knockbacks . | . . . . . Impact . | . . . . . Kinetic . | . . . . . Secondary . | . . . . . Self-Inflicted Damage . | . . . . . Shots . | . . . . . Rammed . | . . . . . Targets Rammed . | . . . . . Kicked . | . . . . . Crushed . | . . . . . Highest Temperature 281 | . 117 120 36 281 Average Temperature 44 | . 34 43 12 146 Received Heat Transfer 405 | . 42 24 54 285 Siege Activations . | . . . . . Martial Activations . | . . . . . Shielding Activations . | . . . . . Robots Disrupted . | . . . . . Combat Hostiles . | . . . . . Robots Corrupted . | . . . . . Combat Hostiles . | . . . . . Parts Fried . | . . . . . Impact Corruptions . | . . . . . Robots Melted . | . . . . . Combat Hostiles . | . . . . . Parts Melted . | . . . . . Heat Transferred 287 | . 237 50 . . Parts Sabotaged . | . . . . . Parts Stolen . | . . . . . Parts Stripped . | . . . . . Power Chain Reactions . | . . . . . Alert | -11 -10 -9 -8 -7 ------- Run | Yrd Mat Mat Mat Fac Maximum Alert Level . | . . . . . Low Security (%) 100 | 100 100 100 100 100 Level 1 . | . . . . . Level 2 . | . . . . . Level 3 . | . . . . . Level 4 . | . . . . . Level 5 . | . . . . . High Security . | . . . . . Max Security . | . . . . . Peak Influence 181 | . 166 180 165 181 Initial 74 | . . 69 71 74 Average 109 | . 65 138 116 122 Influence Increases 865 | . 226 171 144 324 Destroy 0b10 Robot/C 640 | . 180 120 100 240 Destroy 0b10 Robot/NC 35 | . . . 5 30 Destroy Leader 140 | . 30 30 30 50 Successful Hack 14 | . . 6 8 . Destroy Structure 6 | . 1 . 1 4 Lose Combat Pursuer 30 | . 15 15 . . Influence Decreases 729 | . 60 167 149 353 Entered New Map 287 | . . 97 99 91 Time Decay 402 | . 60 70 50 222 Lost Part 40 | . . . . 40 Squads Dispatched 4 | . 1 1 1 1 Investigation 3 | . 1 1 . 1 Extermination . | . . . . . Reinforcement . | . . . . . Assault . | . . . . . Garrison 1 | . . . 1 . Intercept . | . . . . . Searches Triggered . | . . . . . Construction Impeded . | . . . . . Haulers Reinforced . | . . . . . Active Scanning Responses . | . . . . . Cargo Convoy Interrupts . | . . . . . Stealth | -11 -10 -9 -8 -7 --------- Run | Yrd Mat Mat Mat Fac Distress Signals 1 | . . . 1 . Communications Jammed . | . . . . . Distress Signals . | . . . . . Times Spotted 42 | . 11 11 6 14 Peak Tracking Total 4 | . 3 4 3 4 Tactical Retreats 2 | . 1 1 . . Traps | -11 -10 -9 -8 -7 ------- Run | Yrd Mat Mat Mat Fac Traps Triggered 1 | . . 1 . . Indirectly . | . . . . . Trap Hack Attempts . | . . . . . Triggered . | . . . . . Disarmed . | . . . . . Reprogrammed . | . . . . . Reused . | . . . . . Traps Extracted . | . . . . . Installed . | . . . . . Triggered . | . . . . . Machines | -11 -10 -9 -8 -7 ---------- Run | Yrd Mat Mat Mat Fac Machines Disabled . | . . . . . Max in Single Turn . | . . . . . Machines Repaired . | . . . . . Machines Dismantled . | . . . . . Machines Sabotaged . | . . . . . Overloaded Fab Kills . | . . . . . Hacking | -11 -10 -9 -8 -7 --------- Run | Yrd Mat Mat Mat Fac Machines Accessed 6 | . . 3 2 1 Terminals 5 | . . 3 2 . Fabricators . | . . . . . Repair Stations 1 | . . . . 1 Recycling Units . | . . . . . Scanalyzers . | . . . . . Garrison Access . | . . . . . Total Hacks 12 | . . 4 5 3 Successful 9 | . . 3 3 3 Failed 3 | . . 1 2 . Catastrophic . | . . . . . Database Lockouts . | . . . . . Manual 10 | . . 4 5 1 Terminals 9 | . . 4 5 . Fabricators . | . . . . . Repair Stations 3 | . . . . 3 Recycling Units . | . . . . . Scanalyzers . | . . . . . Garrison Access . | . . . . . Terminal Hacks 3 | . . 1 2 . Part Schematic 2 | . . . 2 . Level Access Points 1 | . . 1 . . Fabricator Hacks . | . . . . . Repair Station Hacks 2 | . . . . 2 Scan Component 1 | . . . . 1 Repair 1 | . . . . 1 Recycling Unit Hacks . | . . . . . Scanalyzer . | . . . . . Garrison Access Hacks . | . . . . . Unauthorized Hacks 4 | . . 2 1 1 Terminals 3 | . . 2 1 . Botnet 3 | . . 2 1 . Fabricators . | . . . . . Repair Stations 1 | . . . . 1 Patch 1 | . . . . 1 Recycling Units . | . . . . . Scanalyzers . | . . . . . Garrison Access . | . . . . . Data Cores Recovered . | . . . . . Used . | . . . . . Hacking Detections 3 | . . . 2 1 Full Trace Events . | . . . . . Feedback Events . | . . . . . Feedback Blocked . | . . . . . Robot Schematics Acquired . | . . . . . Robots Built . | . . . . . Authchips . | . . . . . Time . | . . . . . Total Robot Build Rating . | . . . . . Part Schematics Acquired 2 | . . . 2 . Parts Built . | . . . . . Authchips . | . . . . . Time . | . . . . . Total Part Build Rating . | . . . . . Parts Repaired 1 | . . . . 1 Time 26 | . . . . 26 Parts Recycled . | . . . . . Recycled Matter . | . . . . . Retrieved Matter . | . . . . . Retrieved Components . | . . . . . Parts Scanalyzed . | . . . . . Part Schematics Acquired . | . . . . . Parts Damaged . | . . . . . Bothacking | -11 -10 -9 -8 -7 ------------ Run | Yrd Mat Mat Mat Fac Used RIF Installer . | . . . . . Robots Hacked . | . . . . . Non-combat . | . . . . . Combat . | . . . . . Robot Hacks Applied . | . . . . . Relay Couplers Released . | . . . . . Fabnet Peak Effective % . | . . . . . Robots Rewired . | . . . . . Allies Hacked . | . . . . . Hacks Repelled . | . . . . . Allies | -11 -10 -9 -8 -7 -------- Run | Yrd Mat Mat Mat Fac Total Allies . | . . . . . Largest Group . | . . . . . Highest-Rated Group . | . . . . . Highest-Rated Ally . | . . . . . Total Orders . | . . . . . Ally Attacks . | . . . . . Total Damage . | . . . . . Kills . | . . . . . Allies Corrupted . | . . . . . Allies Melted . | . . . . . Intel | -11 -10 -9 -8 -7 ------- Run | Yrd Mat Mat Mat Fac Active Infowar (turns) . | . . . . . Robot Analysis Total . | . . . . . Derelict Logs Recovered . | . . . . . Drone Launches . | . . . . . Drone Recoveries . | . . . . . Exploration | -11 -10 -9 -8 -7 ------------- Run | Yrd Mat Mat Mat Fac Turns Passed 953 | 23 199 148 115 468 Spaces Moved 1253 | 37 251 272 142 551 Core 191 | 37 154 . . . Treads . | . . . . . Legs . | . . . . . Wheels . | . . . . . Hover 147 | . . . . 147 Flight 915 | . 97 272 142 404 Fastest Speed 37 | 50 37 37 37 37 Average Speed 42 | 50 45 37 37 43 Slowest Speed 60 | 50 50 37 37 60 Overloaded Moves . | . . . . . Propulsion Burnouts . | . . . . . Robots Hopped 7 | . 3 3 1 . Potential Cave-ins . | . . . . . Cave-ins Triggered . | . . . . . Exploration Rate (%) 23 | 3 45 32 26 13 Regions Visited 4 Branch Regions . Pre-discovered Areas . | . . . . . Known Exits Taken 1 | . . 1 . . Unknown Exits Taken 3 | 1 1 . 1 . Scrap Searched . | . . . . . Spaces Dug 2 | . . . . 2 Terrain Destroyed 2 | . . . . 2 Melee 2 | . . . . 2 Projectile . | . . . . . AOE . | . . . . . Terrain Rammed . | . . . . . Walls Destroyed . | . . . . . Machines Disabled . | . . . . . Actions | -11 -10 -9 -8 -7 --------- Run | Yrd Mat Mat Mat Fac Total 1512 | 39 297 297 174 705 Wait 111 | . 18 3 1 89 Move 1235 | 36 244 265 139 551 Hop 7 | . 3 3 1 . Pick Up . | . . . . . Fast Attach 17 | 3 5 3 1 5 Attach . | . . . . . Detach . | . . . . . Swap 3 | . . 2 . 1 Drop 11 | . 2 3 4 2 Fire 38 | . 16 9 13 . Melee 54 | . . . 2 52 Ram . | . . . . . Kick . | . . . . . Crush . | . . . . . Escape Stasis . | . . . . . Rewire . | . . . . . Trap . | . . . . . Miscellaneous 36 | . 9 9 13 5 Route ------- -11/Scrapyard -10/Materials (discovered 4 exits: *Mat x2 / [*Min] / [*Sub]) -9/Materials (discovered 3 exits: *Mat x3) -8/Materials -7/Factory History --------- Turn | Location | Event 2 | -11/Scrapyard | Upgraded with Propulsion slot (x1) 2 | -11/Scrapyard | Upgraded with Weapon slot (x3) 7 | -11/Scrapyard | Discovered new exit (range 16) 24 | -11/Scrapyard | Entered Materials 25 | -10/Materials | Met a group of wandering Federalists 43 | -10/Materials | Discovered new exit (range 7) 51 | -10/Materials | Discovered new exit (range 8) 59 | -10/Materials | Discovered new exit (range 6) 174 | -10/Materials | Discovered new exit (range 5) 223 | -10/Materials | Entered another Materials area 225 | -9/Materials | Reached level 2 242 | -9/Materials | Reached level 3 263 | -9/Materials | Destroyed 7 combat bots 292 | -9/Materials | Identified exit to Materials 371 | -9/Materials | Entered another Materials area 373 | -8/Materials | Reached level 4 427 | -8/Materials | Garrison activated, responded to threat 474 | -8/Materials | Discovered new exit (range 8) 486 | -8/Materials | Entered Factory 488 | -7/Factory | Reached level 5 574 | -7/Factory | Core integrity fell below 50% 655 | -7/Factory | Reached level 6 741 | -7/Factory | Build established: Hacker-Mutant 769 | -7/Factory | Repaired Flight Unit 832 | -7/Factory | Core integrity fell below 20% 949 | -7/Factory | System corruption reached 10% 954 | -7/Factory | Destroyed by G-47 Trooper with Particle Gun Last Messages --------------- R-06 Scavenger collects Sml. Matter Pod. G-47 Trooper destroyed. G-47 Trooper Aluminum Leg severed. R-06 Scavenger collects Aluminum Leg. Neutrino Reactor explodes. Chain reaction triggered in Imp. Deuterium Engine. G-47 Trooper destroyed. K-01 Serf collects debris. Acquired Corrupted Lgt. Nuclear Core. Integrated Corrupted Lgt. Nuclear Core (+10). R-06 Scavenger collects Particle Gun. Neutrino Reactor explodes. System corrupted: Heat flow error (+291). Backup Propulsion I tumbles out of repair station. Chain reaction triggered in Lgt. Nuclear Core. Backup Plating I tumbles out of repair station. Backup Propulsion I tumbles out of repair station. Door malfunctions. K-01 Serf collects debris. R-06 Scavenger collects Corrupted Imp. Heat Sink. Map ----- +----------------------------------------------------+ | ?????# ## ## # #?????????????? | | ########+##### ## / / ##########?????????????? | | ## #??????????????????????? | | # T## ##### ! #??????????????????????? | | ##### #???###########??????????????????????? | | ????# #???# #######????????????????? | | ????# ##### #???#= + ???????????????? | | ????# #???# #???# [ # ???????????????? | | ????# #???# #???# ! +^ """ ?#????????????? | | ????# #???# #???# # """ !#????????????? | | #####+##### #???# # """ #????????????? | | # #???? # ###??????????? | | """ """" # #?????? ??# #??????????? | | """ """" # #########+##### " F" #??????????? | | """ """" # ! """" #??????????? | | """ """" # #??????????? | | + u #??????????? | | """ """" # ########???????????? | | """ """" # # #???????????? | | """ """" ############### #""" #???????????? | | """ """" #?????######??# #"R #???????????? | | #?????? ?# # "!= #???????????? | | [ #???????? # #!= #???????????? | | ###########?????????""" # # #???????????? | | ??????????????????? """ ; / #???????????? | | ????????????????????""" #@ # # ??????????? | | ??????????????????? # #! # ? ???????? | | ?????????????????######## # """"" #??? | | ??????????????#??? # # """"" #??? | | ??????????????# """"""" # kg == # #??? | | ??????????????# """"""" #r % % # """ #??? | | ??????????????# """"""" /g r %! ;### """"" #??? | | ??????????????# """"""" # ######?? """"" #??? | | ??????????????# # #????????? ????? | | ??????????????# # %############+####### | | ??????????????# # | | ??????????????####+###### ^ | | ?????????????????#??????# | | ????????????????????????# % | | ????????????????????????# % | | ????????????????????????###########+############/# | | ?????????????????????????????# !%% #?????? | | ?????????????????????????????# [= """ #??????? | | ?????????????????????????????# "Y" #??????? | | ?????????????????????????????# #??????? | | ?????????????????????????????# " "" #?###### | | ?????????????????????????????# ! """"" #? | | ?????????????????????????????# """ #? | | ?????????????????????????????# #?? ! | | ?????????????????????????????# """"" #??? | +----------------------------------------------------+ Best States ------------- Heat Dissipation 37 Energy Generation 16 Energy Capacity 290 Matter Stores 300 Matter Capacity 300 Sight Range 16 Terrain Scan Density 10 Armor Coverage 150 Melee Speed Boost 20 Evasion (%) 62 Offensive Hacking 30 Item Schematics ----------------- Katana | -8/Materials | Hacked Actuator Array | -8/Materials | Hacked Robot Schematics ------------------ None Fabricated ------------ Nothing Repaired ---------- Flight Unit | 20% | -7/Factory Alien Tech Used ----------------- None Achievements -------------- None Challenges ------------ None RPGLIKE | -11 -10 -9 -8 -7 --------- Run | Yrd Mat Mat Mat Fac Levels Raised 5 | . . 2 1 2 XP Earned 11430 | 3000 1050 2280 2150 2950 XP Spent 7480 | 3000 . 2120 2200 160 Upgrades 17 | 5 . 6 2 4 Propulsion Slot 1 | 1 . . . . Weapon Slot 3 | 3 . . . . Core Integrity 4 | . . . . 4 Heat Dissipation 2 | . . 2 . . Mass Support 1 | 1 . . . . Hack Attack % 6 | . . 4 2 . Protomatter Created 418 | . 83 75 87 173 Integrity Restored 714 | . 164 185 254 111 Core 574 | . 152 145 166 111 Parts 140 | . 12 40 88 . Protomatter Decayed 123 | . 28 . . 95 Game ------ Seed DispersalSuperdenseActivator Manual? 0 Play Time 00:11:25 Cumulative 271.2 hours Start 2025.06.08 @ 15:36:10 End 2025.06.08 @ 15:47:27 Sessions 1 Manual Loads 0 Difficulty Rogue Special Mode Winter2019/RPGLIKE Game No. 271 Rogue 82 Adventurer 177 Explorer 12 Win Type - Total 65 Types 19/1/16/2/12/0/4/5/0/6 Lore% 55 Gallery% 54 Achievement% 71 Wizard Run 0 Options --------- Layout 0 ASCII 0 Keyboard 0 Movement Numpad Keybinds 0 Fullscreen 2 Font 12/Smallcaps Map View 83x54 Zoom Use 0% Tactical HUD 0 Map Filters NONE Filters NONE Steam 1 RUN: 312c057c-ca4d-4f23-a3c5-3b7928a72101